bitfinex-derivatives/quotes_ETHF0:USTF0_20260208
["timestamp","ask_amount","ask_price","bid_price","bid_amount"]
[1770514110069,0.86039047,2084.8,2084.1,2.85718561]
[1770514110266,0.86039047,2084.8,2084.1,0.00398651]
[1770514113860,0.92114602,2084.5,2084.1,0.00398651]
[1770514114068,0.85978341,2084.4,2084.1,0.00049215]
[1770514117872,0.85978341,2084.4,2083.6,8.04661798]
[1770514117873,0.85978341,2084.4,2083.6,2.8531991]
[1770514118763,0.85978341,2084.4,2083.6,2.85748754]
[1770514119872,0.85978341,2084.4,2083.6,7.23126508]
[1770514120073,0.85978341,2084.4,2083.6,2.85748754]
[1770514123973,0.85978341,2084.4,2083.6,8.05090642]
[1770514124271,0.8609276,2084.8,2083.8,3.77434512]
[1770514125875,0.8609276,2084.8,2083.9,2.8531991]
[1770514128976,0.8609276,2084.8,2083.9,7.23030172]
[1770514129176,0.8609276,2084.8,2084.0,0.92114602]
[1770514129374,0.8609276,2084.8,2084.0,3.77434512]
[1770514130272,0.8609276,2084.8,2084.0,12.43143738]
[1770514130771,0.8609276,2084.8,2084.1,7.2380185]
[1770514130972,0.8609276,2084.8,2084.0,7.12547196]
[1770514131271,0.8609276,2084.8,2084.0,11.51010335]
[1770514131467,0.8609276,2084.8,2084.1,7.23783049]
[1770514131674,0.8609276,2084.8,2084.1,2.8531991]
[1770514138879,0.85758882,2084.6,2084.1,2.8531991]
[1770514139077,0.85758882,2084.6,2084.0,2.8531991]
[1770514142488,0.85758882,2084.6,2084.0,7.23904301]
[1770514142784,0.85758882,2084.6,2084.0,2.85996959]
[1770514142985,0.85758882,2084.6,2084.0,7.24495582]
[1770514148790,0.85965744,2084.4,2083.9,7.24495582]
[1770514148988,0.85965744,2084.4,2083.8,7.13224245]
[1770514149188,0.85965744,2084.4,2083.8,11.52316068]
[1770514149688,0.85965744,2084.4,2083.9,4.39091823]
[1770514149888,0.85965744,2084.4,2083.8,7.13224245]
[1770514150088,0.85965744,2084.4,2083.8,11.52287138]
[1770514150891,0.85965744,2084.4,2083.9,7.25059852]
[1770514151192,0.85965744,2084.4,2083.8,7.13224245]
[1770514151391,0.85965744,2084.4,2083.9,7.25088528]
[1770514152095,0.85965744,2084.4,2083.8,11.52315814]
[1770514152391,0.85965744,2084.4,2083.9,7.25063364]
[1770514153195,0.85965744,2084.4,2083.8,7.13224245]
[1770514153389,0.85965744,2084.4,2083.9,7.25103497]
[1770514154294,0.85965744,2084.4,2083.9,2.85996959]
[1770514154489,0.85965744,2084.4,2083.9,4.39078246]
[1770514154788,0.85965744,2084.4,2083.9,7.25075205]
[1770514155188,0.92114602,2084.1,2083.8,7.1337968]
[1770514155388,0.92114602,2084.1,2083.6,5.70065225]
[1770514155389,0.85946871,2084.0,2083.6,0.00428844]
[1770514156691,0.92114602,2084.3,2083.6,0.00428844]
[1770514156893,0.85970985,2084.2,2083.6,0.00428844]
[1770514161298,0.86041233,2084.0,2083.6,0.00428844]
[1770514161994,0.85728172,2083.8,2083.1,4.27227286]
[1770514162992,0.85728172,2083.8,2083.1,4.27700321]
[1770514163393,0.85728172,2083.8,2083.1,0.00473035]
[1770514163599,0.85728172,2083.8,2083.2,0.92114602]
[1770514164098,0.85803212,2084.2,2083.2,0.92114602]
[1770514165500,0.85803212,2084.2,2083.1,4.27700321]
[1770514168202,0.85803212,2084.2,2083.2,0.92200194]
[1770514168404,17.54881084,2085.0,2083.5,5.1942748]
[1770514168405,0.85586905,2084.5,2083.5,5.1942748]
[1770514168701,0.85586905,2084.5,2083.5,4.27227286]
[1770514169304,0.85586905,2084.5,2083.6,4.27227286]
[1770514169497,0.85586905,2084.5,2083.6,8.64331676]
[1770514169696,0.85586905,2084.5,2083.7,4.3710439]
[1770514169892,0.85586905,2084.5,2083.6,4.27227286]
[1770514170096,0.85586905,2084.5,2083.6,8.64124935]
[1770514172400,0.85586905,2084.5,2083.7,4.36897649]
[1770514172600,0.85586905,2084.5,2083.8,4.38454531]
[1770514172906,0.85586905,2084.5,2083.7,4.27227286]
[1770514173100,0.85586905,2084.5,2083.7,8.65632251]
[1770514174003,0.85586905,2084.5,2083.9,4.27227286]
[1770514175303,0.85586905,2084.5,2083.9,8.65632251]
[1770514175504,0.85263042,2084.9,2084.0,4.38404965]
[1770514175703,0.85263042,2084.9,2083.9,4.27227286]
[1770514178808,0.85263042,2084.9,2083.9,8.65466516]
[1770514179005,0.85263042,2084.9,2084.0,4.3823923]
[1770514179207,0.85263042,2084.9,2083.9,4.27227286]
[1770514180706,0.85263042,2084.9,2083.8,4.27227286]
[1770514181302,0.85263042,2084.9,2083.8,8.65526388]
[1770514181505,0.85263042,2084.9,2083.9,4.38299102]
[1770514181701,0.85263042,2084.9,2083.8,4.27227286]
[1770514182304,0.85263042,2084.9,2083.8,8.65486646]
[1770514182506,0.85263042,2084.9,2083.9,4.3825936]
[1770514182707,0.85263042,2084.9,2083.8,4.27227286]
[1770514183300,0.85263042,2084.9,2083.8,8.65448146]
[1770514183504,0.85263042,2084.9,2083.9,4.3822086]
[1770514183703,0.85263042,2084.9,2083.8,4.27227286]
[1770514184609,0.85185174,2084.4,2083.5,4.27227286]
[1770514186315,0.84982341,2084.9,2083.5,4.27227286]
[1770514186610,0.84982341,2084.9,2083.5,5.1942748]
[1770514187017,0.84982341,2084.9,2083.5,10.89063861]
[1770514187211,0.84982341,2084.9,2083.6,4.27227286]
[1770514189519,0.84982341,2084.9,2083.6,8.655689]
[1770514189818,0.84982341,2084.9,2083.7,4.38341614]
[1770514190006,0.84982341,2084.9,2083.6,4.27227286]
[1770514190617,0.84982341,2084.9,2083.5,9.96863667]
[1770514191112,0.84982341,2084.9,2083.6,4.27227286]
[1770514191312,0.84982341,2084.9,2083.6,8.65681133]
[1770514191511,0.84982341,2084.9,2083.7,4.38453847]
[1770514191706,0.84982341,2084.9,2083.6,4.27227286]
[1770514192211,0.85029372,2084.8,2083.6,4.27227286]
[1770514193918,0.85029372,2084.8,2083.7,4.27227286]
[1770514194217,0.85029372,2084.8,2083.7,8.65774758]
[1770514194619,0.85029372,2084.8,2083.7,4.27227286]
[1770514194822,0.85029372,2084.8,2083.6,4.27227286]
[1770514195008,0.85029372,2084.8,2083.6,8.66013367]
[1770514195209,0.85029372,2084.8,2083.7,4.27227286]
[1770514195919,0.85029372,2084.8,2083.7,8.66013367]
[1770514196216,0.85029372,2084.8,2083.8,4.38786081]
[1770514196422,0.85029372,2084.8,2083.7,4.27227286]
[1770514196617,0.85029372,2084.8,2083.7,8.66123574]
[1770514197218,0.85029372,2084.8,2083.8,4.38896288]
[1770514197622,0.85029372,2084.8,2083.8,8.66123574]
[1770514198123,0.85029372,2084.8,2083.9,8.66123574]
[1770514200422,0.85029372,2084.8,2084.0,8.66123574]
[1770514201017,5.75523762,2085.1,2084.0,8.66123574]
[1770514201018,0.85233894,2085.0,2084.0,8.66123574]
[1770514201217,0.85233894,2085.0,2084.2,4.27227286]
[1770514201520,0.85233894,2085.0,2084.2,8.66123574]
[1770514202020,0.8514627,2084.9,2084.2,8.66123574]
[1770514202221,0.8514627,2084.6,2083.6,5.69636381]
[1770514202419,0.8514627,2084.6,2083.7,4.38468649]
[1770514202924,0.8514627,2084.6,2083.5,5.69636381]
[1770514203115,0.8514627,2084.6,2083.6,4.38367863]
[1770514203313,0.8514627,2084.6,2083.4,5.69636381]
[1770514203631,0.8514627,2084.3,2083.5,4.38305022]
[1770514204124,0.8514627,2084.3,2083.3,5.69636381]
[1770514204321,0.8514627,2084.3,2083.4,4.3830697]
[1770514204515,0.8514627,2084.3,2083.1,5.70109416]
[1770514204718,0.85143528,2084.2,2083.2,4.38460736]
[1770514205117,0.85143528,2084.2,2083.1,0.00473035]
[1770514205320,0.85143528,2084.0,2083.1,4.38933771]
[1770514205520,0.85143528,2084.0,2083.1,0.00473035]
[1770514206329,0.8527206,2083.7,2083.1,0.00473035]
[1770514211232,0.85216207,2084.2,2083.1,0.00473035]
[1770514213331,0.85870041,2084.0,2083.1,0.00473035]
[1770514224644,6.61011943,2084.0,2083.1,0.00473035]
[1770514225045,0.86450367,2083.9,2083.1,0.00473035]
[1770514230455,0.86481434,2083.5,2082.3,2.85097664]
[1770514231258,0.86481434,2083.5,2082.3,7.22750837]
[1770514231448,0.87037673,2083.5,2082.4,4.37653173]
[1770514231648,0.87037673,2083.5,2082.3,0.0035414]
[1770514232047,6.62179575,2083.5,2082.3,0.0035414]
[1770514232255,0.86549598,2083.3,2082.3,0.0035414]
[1770514232455,6.616915,2083.3,2082.3,0.0035414]
[1770514232656,0.86549598,2083.2,2082.3,0.0035414]
[1770514234650,6.616915,2083.2,2082.3,0.0035414]
[1770514234847,0.86509897,2083.1,2082.3,0.0035414]
[1770514235459,0.86509897,2082.9,2082.3,0.0035414]
[1770514236853,0.86521988,2083.1,2082.4,0.92305915]
[1770514238158,0.86886587,2083.4,2082.4,0.92305915]
[1770514238358,0.86886587,2083.4,2082.4,3.77403579]
[1770514239452,0.86886587,2083.4,2082.5,2.85097664]
[1770514239654,0.86886587,2083.4,2082.6,0.92305915]
[1770514240956,0.86914645,2083.2,2082.4,2.85097664]
[1770514241365,0.86914645,2083.2,2082.3,7.14117943]
[1770514241562,0.86914645,2083.2,2082.4,8.14487758]
[1770514241758,0.86914645,2083.2,2082.4,0.92305915]
[1770514241957,0.86914645,2083.2,2082.4,3.77403579]
[1770514242659,0.86914645,2083.2,2082.4,8.14485242]
[1770514242859,0.86914645,2083.2,2082.4,3.77403579]
[1770514243061,0.86847018,2083.4,2082.6,0.92305915]
[1770514243260,0.86847018,2083.4,2082.8,0.92305915]
[1770514244161,0.00556239,2083.5,2082.8,0.92305915]
[1770514244362,0.00556239,2083.5,2082.8,3.77403579]
[1770514244863,0.00556239,2083.5,2082.8,8.14454154]
[1770514245058,0.00556239,2083.5,2082.9,2.85097664]
[1770514245766,7.14905889,2084.3,2082.9,2.85097664]
[1770514245767,0.86807104,2084.3,2083.3,2.85097664]
[1770514245962,0.86807104,2084.3,2083.4,2.85097664]
[1770514246163,0.86807104,2084.3,2083.3,7.13763803]
[1770514246362,0.86807104,2084.3,2083.4,4.36465975]
[1770514246563,0.86807104,2084.3,2083.3,2.85097664]
[1770514246564,0.86807104,2084.3,2083.3,7.13763803]
[1770514246763,0.87274671,2084.3,2083.4,4.36469528]
[1770514247068,0.87274671,2084.3,2083.3,2.85097664]
[1770514247766,0.87274671,2084.3,2083.3,7.21377517]
[1770514247968,0.87274671,2084.3,2083.3,2.85097664]
[1770514249772,0.87274671,2084.3,2083.2,2.85097664]
[1770514250773,0.87274671,2084.3,2083.1,4.28666139]
[1770514251071,0.87274671,2084.3,2083.2,2.84813355]
[1770514251262,0.87274671,2084.3,2083.1,4.28666139]
[1770514251870,0.87274671,2084.3,2083.0,5.69636381]
[1770514252168,0.87274671,2084.3,2082.8,7.14621671]
[1770514253871,0.87274671,2084.3,2082.6,8.7996933]
[1770514254464,0.87274671,2084.3,2083.0,2.84773735]
[1770514257869,0.87274671,2084.3,2083.1,2.84773735]
[1770514258070,0.87274671,2084.3,2083.3,2.84773735]
[1770514258269,0.87274671,2084.3,2083.2,2.84773735]
[1770514258871,0.87274671,2084.3,2083.2,7.11934338]
[1770514259067,0.87274671,2084.3,2083.3,4.35261477]
[1770514259271,0.87274671,2084.3,2083.0,2.84773735]
[1770514260375,0.87274671,2084.3,2083.2,2.84773735]
[1770514261476,0.87274671,2084.3,2083.2,7.11934338]
[1770514261774,0.87274671,2084.3,2083.3,7.20035168]
[1770514261972,0.87274671,2084.3,2083.2,2.84773735]
[1770514263074,0.00467567,2084.3,2083.2,2.84773735]
[1770514263270,0.00467567,2084.3,2083.4,2.84773735]
[1770514263574,0.00467567,2084.3,2083.5,2.84773735]
[1770514263777,0.8674485,2084.3,2083.5,2.84773735]
[1770514264077,0.00467567,2084.3,2083.4,2.84773735]
[1770514264274,0.00467567,2084.3,2083.5,2.84773735]
[1770514267472,0.00467567,2084.3,2083.6,0.92155728]
[1770514268177,0.00467567,2084.3,2083.6,3.76929463]
[1770514268376,0.86414747,2085.0,2084.2,0.92155728]
[1770514269279,0.86813126,2085.0,2084.4,0.92155728]
[1770514269476,0.00398379,2085.0,2084.2,0.00491081]
[1770514269678,0.86813126,2085.0,2084.2,0.00491081]
[1770514269978,0.00398379,2085.0,2084.2,0.00491081]
[1770514270175,0.8659864,2085.8,2084.4,2.84773735]
[1770514271174,0.86970835,2085.8,2084.4,2.84773735]
[1770514272176,0.86970835,2085.8,2084.8,2.84773735]
[1770514273384,0.86970835,2085.8,2084.7,2.84773735]
[1770514273579,0.86970835,2085.8,2084.6,7.11934338]
[1770514274076,0.86970835,2085.8,2084.6,2.84773735]
[1770514274673,0.86970835,2085.8,2084.7,2.84773735]
[1770514277082,0.00372195,2085.8,2084.9,2.84773735]
[1770514277277,5.72530678,2086.9,2084.9,2.84773735]
[1770514277278,0.87221403,2086.9,2085.1,2.84773735]
[1770514277688,0.87221403,2086.9,2085.1,7.11934338]
[1770514277984,0.87221403,2086.9,2085.2,7.18382329]
[1770514278188,0.87615662,2086.9,2085.3,4.33608594]
[1770514278374,0.87615662,2086.9,2085.2,2.84773735]
[1770514279181,0.87615662,2086.9,2085.2,7.16832842]
[1770514279386,0.87615662,2086.9,2085.8,1.3813666]
[1770514279683,0.87615662,2086.9,2085.8,1.38567013]
[1770514279890,0.00394259,2086.9,2085.8,4.23340748]
[1770514280183,0.00394259,2086.9,2085.8,1.38567013]
[1770514280583,0.00394259,2086.9,2085.8,1.69010706]
[1770514280774,0.00394259,2086.9,2085.9,2.84773735]
[1770514281180,0.00394259,2086.9,2085.8,4.53784441]
[1770514281789,0.00394259,2086.9,2085.9,7.14910689]
[1770514281989,0.00394259,2086.9,2085.9,2.84773735]
[1770514282289,0.87459274,2088.2,2086.2,1.3813666]
[1770514282991,0.87459274,2087.5,2085.8,0.54861046]
[1770514283389,0.87953334,2087.5,2085.8,0.54861046]
[1770514285793,0.87953334,2087.5,2085.8,0.30874046]
[1770514286095,0.87658077,2087.1,2085.8,0.00430353]
[1770514286994,0.87658077,2086.7,2085.8,0.00430353]
[1770514289184,0.87658077,2086.7,2084.7,3.08773735]
[1770514290089,0.87658077,2086.7,2084.8,2.84773735]
[1770514290297,0.87658077,2086.7,2084.8,2.81355059]
[1770514291394,0.87658077,2086.7,2084.9,2.81355059]
[1770514293199,0.87658077,2086.7,2085.0,2.81355059]
[1770514294092,0.87658077,2086.7,2085.1,2.81355059]
[1770514295294,0.87658077,2086.7,2085.5,2.81355059]
[1770514295493,10.229,2087.4,2085.5,2.81355059]
[1770514295692,0.87918208,2087.3,2085.5,2.81355059]
[1770514297095,0.87918208,2087.3,2085.6,2.81355059]
[1770514298292,0.87918208,2087.3,2085.7,2.81355059]
[1770514298695,0.87918208,2087.3,2085.9,2.81355059]
[1770514299291,0.87918208,2087.3,2086.0,2.81355059]
[1770514300688,0.87764135,2087.2,2085.7,2.81355059]
[1770514302300,0.87764135,2087.2,2085.8,2.81355059]
[1770514302896,0.87428227,2087.0,2085.8,2.81355059]
[1770514303098,0.87428227,2087.0,2085.6,7.08515662]
[1770514303495,0.87428227,2087.0,2085.7,7.16355605]
[1770514303695,0.87428227,2087.0,2085.7,2.81355059]
[1770514305202,0.87428227,2087.0,2085.8,2.81355059]
[1770514306200,0.87428227,2087.0,2085.8,7.08515662]
[1770514306404,0.87428227,2087.0,2085.9,7.16644915]
[1770514306606,0.87428227,2087.0,2085.9,2.81355059]
[1770514307105,0.87428227,2087.0,2086.0,2.81355059]
[1770514308609,0.87428227,2087.0,2086.1,2.81355059]
[1770514310014,0.87428227,2087.0,2086.1,7.08515662]
[1770514310215,0.87428227,2087.0,2086.3,2.81355059]
[1770514310415,0.87428227,2087.0,2086.3,2.81935151]
[1770514311215,0.87428227,2087.0,2086.3,0.00580092]
[1770514314919,0.87362361,2086.9,2085.7,7.08515662]
[1770514315216,0.87362361,2086.9,2085.6,5.6954747]
[1770514315217,0.87362361,2086.8,2085.6,2.81355059]
[1770514315910,0.87362361,2086.8,2085.6,2.81896299]
[1770514316115,0.87410812,2086.7,2085.6,7.1800788]
[1770514316316,0.87410812,2086.7,2085.6,2.81896299]
[1770514318115,0.87410812,2086.7,2085.6,0.0054124]
[1770514318317,0.87570845,2086.6,2085.6,0.0054124]
[1770514318717,0.87570845,2086.5,2085.6,0.0054124]
[1770514321817,0.87570845,2086.5,2085.6,2.81896299]
[1770514322123,0.87570845,2086.5,2085.7,2.81355059]
[1770514323021,0.87570845,2086.5,2085.6,7.17596038]
[1770514323220,0.87570845,2086.5,2085.7,4.35658838]
[1770514323424,0.87570845,2086.5,2085.6,7.09056902]
[1770514323626,5.72530678,2086.9,2085.7,7.16950416]
[1770514323627,0.87579133,2086.8,2085.7,7.16950416]
[1770514323823,0.87579133,2086.8,2085.7,2.81355059]
[1770514324224,0.87579133,2086.8,2085.8,2.81355059]
[1770514325424,0.87579133,2086.8,2085.8,7.16950998]
[1770514325626,0.87579133,2086.8,2085.8,2.81355059]
[1770514328624,0.87579133,2086.8,2085.9,2.81355059]
[1770514329024,0.8727337,2087.1,2086.1,2.81355059]
[1770514329323,0.8727337,2087.1,2086.0,7.17082226]
[1770514329529,0.8727337,2087.1,2086.0,2.81355059]
[1770514330929,0.87141596,2087.0,2085.9,2.81355059]
[1770514331821,0.87141596,2087.0,2086.2,2.81355059]
[1770514332024,0.87141596,2087.0,2086.3,2.81355059]
[1770514332824,0.86318359,2087.4,2086.3,2.81355059]
[1770514333026,0.86318359,2087.4,2086.4,2.81355059]
[1770514333528,0.86318359,2087.4,2086.4,7.1693565]
[1770514333729,0.86318359,2087.4,2086.4,2.81355059]
[1770514334832,0.86318359,2087.4,2086.4,7.08515662]
[1770514335033,0.86318359,2087.4,2086.5,7.16916935]
[1770514335332,0.86318359,2087.4,2086.4,2.81355059]
[1770514335532,0.86318359,2087.4,2086.4,7.08515662]
[1770514335734,0.86318359,2087.4,2086.5,4.35271098]
[1770514335929,0.86318359,2087.4,2086.5,2.81355059]
[1770514336134,0.86318359,2087.4,2086.4,7.08515662]
[1770514336337,0.86318359,2087.4,2086.5,7.16505757]
[1770514336531,0.86318359,2087.4,2086.7,2.81355059]
[1770514336732,0.88339465,2087.5,2086.6,2.81355059]
[1770514337133,0.0049406,2087.5,2086.8,2.81355059]
[1770514337835,0.56482398,2088.2,2087.3,0.28653071]
[1770514338935,0.56967486,2088.2,2087.3,0.291916]
[1770514339140,0.56967486,2088.2,2087.4,0.28653071]
[1770514339636,0.00485088,2088.2,2087.4,0.28653071]
[1770514339841,0.56967486,2088.2,2087.4,0.28653071]
[1770514345041,0.56967486,2088.2,2087.3,0.29795254]
[1770514345241,0.56967486,2088.2,2087.3,0.00538529]
[1770514345942,0.56967486,2088.2,2087.0,0.29717486]
[1770514346940,0.56967486,2088.2,2087.0,0.30258732]
[1770514347640,0.56967486,2088.2,2087.0,0.00541246]
[1770514347842,0.56967486,2088.2,2087.0,0.29428703]
[1770514348739,0.56967486,2088.2,2087.0,0.00541246]
[1770514349545,0.56482398,2088.0,2087.0,0.00541246]
[1770514351640,0.56482398,2088.0,2087.0,0.29819144]
[1770514355644,0.56482398,2088.0,2087.0,0.00541246]
[1770514355946,0.56482398,2088.0,2087.0,0.00016982]
[1770514355947,0.53330453,2087.6,2087.0,0.00016982]
[1770514359441,0.53330453,2087.9,2087.0,0.2934645]
[1770514363250,0.53330453,2087.9,2087.1,0.28985086]
[1770514364151,0.53330453,2087.9,2087.2,0.28999626]
[1770514368957,0.53330453,2088.0,2087.2,0.28999626]
[1770514369161,0.53330453,2088.1,2087.2,0.28999626]
[1770514370063,0.53330453,2088.1,2087.2,3.12666064]
[1770514370252,0.53330453,2088.1,2087.3,0.28902701]
[1770514372372,0.53330453,2088.1,2087.1,3.11961229]
[1770514372668,0.53330453,2088.1,2087.2,0.28294791]
[1770514373770,0.53330453,2088.1,2087.1,2.83666438]
[1770514373967,0.53330453,2088.1,2087.1,3.12600108]
[1770514374769,0.53330453,2088.1,2087.1,3.13444358]
[1770514374972,0.53330453,2088.1,2087.2,0.2893367]
[1770514378276,0.53330453,2088.0,2087.0,0.29066529]
[1770514378968,0.53330453,2088.0,2087.0,0.00016982]
[1770514382266,0.53330453,2088.0,2087.0,0.28606625]
[1770514384071,1.91185094,2088.0,2087.0,0.00016982]
[1770514384274,0.53330453,2087.9,2087.0,0.00016982]
[1770514385380,0.53330453,2087.6,2087.0,0.00016982]
[1770514385767,0.5557156,2087.5,2086.4,0.283078]
[1770514386567,0.5557156,2087.5,2086.5,0.283078]
[1770514386774,0.5557156,2087.5,2086.5,0.28713346]
[1770514387278,0.5557156,2087.5,2086.6,0.283078]
[1770514389579,0.5557156,2087.5,2086.7,0.2780394]
[1770514390283,0.5557156,2087.5,2086.5,0.28561517]
[1770514391176,0.5557156,2087.5,2086.6,0.28155971]
[1770514392176,0.5557156,2087.5,2086.5,0.00405546]
[1770514393374,0.5557156,2087.5,2086.5,0.28561917]
[1770514394081,0.5557156,2087.5,2086.6,0.280954]
[1770514394579,0.5557156,2087.5,2086.5,0.28500946]
[1770514395175,0.5557156,2087.5,2086.6,0.280954]
[1770514395377,0.5557156,2087.5,2086.7,0.280954]
[1770514395982,0.5557156,2087.5,2086.8,0.28095318]
[1770514396683,0.54832086,2087.9,2087.0,0.28095318]
[1770514398075,0.54832086,2087.9,2087.1,0.2857915]
[1770514399475,0.54832086,2087.9,2087.3,0.2857915]
[1770514401086,0.54832086,2087.9,2087.4,0.28449589]
[1770514402387,0.54832086,2088.1,2087.4,0.28449589]
[1770514402985,0.54832086,2088.1,2087.5,0.28387758]
[1770514403185,0.54832086,2088.1,2087.3,0.28387758]
[1770514403787,0.54832086,2088.1,2087.1,4.55644825]
[1770514403985,0.54832086,2088.1,2087.1,0.28484222]
[1770514409093,0.54832086,2088.1,2087.0,0.28252827]
[1770514414097,0.54832086,2088.1,2086.9,0.28323167]
[1770514414801,0.55317174,2088.2,2087.4,0.28323167]
[1770514414998,0.55317174,2088.2,2087.5,0.28323167]
[1770514418098,0.55317174,2088.2,2087.1,0.27846728]
[1770514420398,0.55317174,2088.2,2087.2,0.27501476]
[1770514421104,0.55317174,2088.2,2087.3,0.27501476]
[1770514421899,0.55317174,2088.2,2087.4,0.27491973]
[1770514422297,0.55317174,2088.2,2087.5,0.27491973]
[1770514424396,0.55317174,2088.2,2087.6,0.27556475]
[1770514425100,0.55317174,2088.2,2087.5,0.30769034]
[1770514425304,0.55317174,2088.2,2087.6,0.27556475]
[1770514427107,0.55317174,2088.2,2087.5,4.33643714]
[1770514427407,0.55317174,2088.2,2087.4,4.54781755]
[1770514427708,0.55317174,2088.2,2087.5,0.27621152]
[1770514430006,0.55317174,2088.2,2087.5,0.59097179]
[1770514430306,0.55317174,2088.2,2087.2,4.34544237]
[1770514430307,0.55317174,2088.2,2087.2,0.27417951]
[1770514431509,0.5581919,2088.1,2087.1,0.30405965]
[1770514431704,0.5581919,2088.1,2087.0,0.27417951]
[1770514432709,0.5581919,2088.1,2087.1,0.27525931]
[1770514436211,0.5581919,2088.1,2087.1,0.58976187]
[1770514436712,0.5581919,2088.1,2087.2,0.27513125]
[1770514440316,0.5581919,2088.1,2087.1,3.15246826]
[1770514440516,0.5581919,2088.1,2087.1,0.31450256]
[1770514440810,0.5581919,2088.1,2087.0,3.12056155]
[1770514441012,0.5581919,2088.1,2087.1,0.28259585]
[1770514442315,0.5581919,2088.1,2087.2,0.28513661]
[1770514442815,0.5581919,2088.1,2087.3,0.28513661]
[1770514443222,0.5581919,2088.1,2087.4,0.28513661]
[1770514443810,0.5581919,2088.1,2087.6,0.27935159]
[1770514444216,0.5581919,2088.1,2087.5,2.8379657]
[1770514445410,0.5581919,2088.1,2087.4,2.8379657]
[1770514445812,0.5581919,2088.1,2087.5,0.00442618]
[1770514447621,0.5581919,2088.1,2087.6,0.00442618]
[1770514452318,0.58417553,2088.2,2087.6,0.00442618]
[1770514452918,0.58417553,2088.2,2087.6,2.84239188]
[1770514453117,0.58417553,2088.2,2087.7,0.00186748]
[1770514453823,0.00485088,2088.2,2087.7,0.00186748]
[1770514454019,0.58083197,2088.2,2087.7,0.00186748]
[1770514455420,0.58083197,2088.2,2087.7,4.34554792]
[1770514455720,0.58083197,2088.2,2087.7,0.00186748]
[1770514456313,0.58083197,2088.2,2087.8,0.00966786]
[1770514459126,0.57523889,2088.7,2088.0,0.01001527]
[1770514459426,0.57199359,2089.2,2088.2,0.01001527]
[1770514460022,0.57745329,2089.2,2088.3,0.56357319]
[1770514461031,0.57745329,2089.2,2088.2,0.0061444]
[1770514462225,0.57199359,2089.1,2087.9,2.8379657]
[1770514462431,0.57199359,2088.9,2087.7,0.56357319]
[1770514462731,0.57199359,2088.9,2087.6,2.8379657]
[1770514463126,0.57199359,2088.9,2087.6,3.40153889]
[1770514463629,0.57199359,2088.9,2087.6,3.40672071]
[1770514465329,0.57199359,2088.8,2087.6,3.40672071]
[1770514465839,0.57199359,2088.8,2087.7,0.56357319]
[1770514470026,0.57199359,2088.8,2087.8,0.56357319]
[1770514473330,0.57199359,2088.7,2087.8,0.56357319]
[1770514474432,0.57199359,2088.7,2087.9,0.56357319]
[1770514475130,0.57199359,2088.7,2088.0,0.56357319]
[1770514479340,0.57199359,2088.7,2087.9,2.8379657]
[1770514479532,0.57199359,2088.7,2087.9,3.36355731]
[1770514482039,0.57199359,2088.7,2087.9,2.8379657]
[1770514482243,0.57199359,2088.7,2087.9,0.52559161]
[1770514483442,0.53230806,2088.6,2087.9,0.52559161]
[1770514483635,0.53230806,2088.6,2087.8,3.36355731]
[1770514484835,0.53230806,2088.6,2087.9,0.52559161]
[1770514490039,0.53230806,2088.6,2087.9,4.90509539]
[1770514490241,0.53230806,2088.6,2088.0,0.52559161]
[1770514490641,0.53230806,2088.2,2087.7,2.8379657]
[1770514490839,0.53230806,2088.2,2087.6,7.75096642]
[1770514491245,0.53230806,2088.2,2087.7,0.52559161]
[1770514500248,5.72523509,2088.6,2087.7,0.52559161]
[1770514500450,0.53230806,2088.6,2087.9,0.52559161]
[1770514500850,0.53230806,2088.6,2088.1,0.52559161]
[1770514501353,0.53230806,2088.6,2088.1,0.02559161]
[1770514505256,0.53230806,2088.9,2088.1,0.02559161]
[1770514506350,0.53230806,2088.9,2088.5,0.10492112]
[1770514508549,0.5317199,2089.0,2088.5,0.10492112]
[1770514508760,0.5371796,2089.2,2088.7,0.10249127]
[1770514509558,0.0054597,2089.2,2088.7,0.10249127]
[1770514510254,0.5317199,2089.7,2089.1,0.91807167]
[1770514510461,0.5317199,2089.7,2089.2,0.10016606]
[1770514511258,8.58796017,2090.6,2089.2,0.10016606]
[1770514511259,0.53232516,2090.1,2089.7,0.09499147]
[1770514511561,0.53232516,2090.1,2089.6,0.09499147]
[1770514511956,0.16902376,2090.1,2089.6,0.09499147]
[1770514512359,0.17286454,2090.1,2089.6,0.09499147]
[1770514513063,0.17286454,2090.1,2089.4,1.37501771]
[1770514513260,0.17286454,2090.1,2089.5,0.45694604]
[1770514513654,0.5396838,2090.5,2089.6,0.45694604]
[1770514513861,0.5396838,2090.5,2089.5,0.45694604]
[1770514514559,0.54369125,2090.5,2089.5,0.45694604]
[1770514515355,0.00400745,2090.5,2089.5,0.45694604]
[1770514515556,0.5396838,2090.9,2089.7,0.46196195]
[1770514515766,0.5396838,2090.9,2089.8,0.46196195]
[1770514516160,0.5396838,2091.2,2089.9,1.37485505]
[1770514516361,0.5396838,2092.1,2090.2,0.46934715]
[1770514516665,0.5396838,2092.1,2090.1,2.84865564]
[1770514516666,0.54539194,2092.1,2090.4,0.46934715]
[1770514518068,0.5396838,2091.7,2090.4,0.46934715]
[1770514519573,0.5396838,2091.7,2090.0,0.46306813]
[1770514520368,0.5396838,2091.7,2090.1,0.46064497]
[1770514520864,0.5396838,2091.3,2090.1,0.46064497]
[1770514521071,0.5396838,2091.3,2089.5,2.6204732]
[1770514521374,0.5396838,2091.3,2089.6,0.46064497]
[1770514521665,0.5396838,2091.3,2089.7,0.46064497]
[1770514528471,1.37485505,2091.4,2089.3,0.23947]
[1770514528472,0.5396838,2090.9,2089.3,0.450937]
[1770514529374,0.5396838,2090.9,2089.4,0.450937]
[1770514530873,0.5396838,2090.9,2089.6,0.43146527]
[1770514531376,0.5396838,2091.1,2090.0,0.43146527]
[1770514532677,0.5396838,2091.5,2090.0,0.43146527]
[1770514533074,0.5396838,2091.5,2090.1,0.45953098]
[1770514534173,0.5396838,2091.5,2090.2,0.45179446]
[1770514535177,0.5396838,2091.5,2090.3,0.45179446]
[1770514537171,0.5396838,2091.5,2090.4,0.45067801]
[1770514538275,0.5396838,2091.5,2090.5,0.45651827]
[1770514540275,0.5396838,2091.5,2090.6,0.45533287]
[1770514542270,0.5396838,2091.5,2090.7,0.45392987]
[1770514542475,0.5396838,2091.5,2090.7,0.45759408]
[1770514543383,0.5396838,2091.5,2090.8,0.45392987]
[1770514553482,0.5396838,2091.5,2090.7,2.81321649]
[1770514553483,0.5396838,2091.5,2090.7,0.00366421]
[1770514556487,0.5396838,2091.5,2090.3,2.80955228]
[1770514556790,0.5396838,2091.5,2090.4,0.4712622]
[1770514557394,0.5396838,2091.5,2090.4,0.47710612]
[1770514557579,0.5396838,2091.5,2090.4,0.00584392]
[1770514559085,0.54630692,2091.4,2090.4,0.00584392]
[1770514559392,0.54630692,2091.4,2090.4,0.47577501]
[1770514560188,0.54630692,2091.3,2090.4,0.00584392]
[1770514561089,6.27154201,2091.3,2090.4,0.00584392]
[1770514561293,0.54630692,2091.2,2090.1,2.80955228]
[1770514561495,0.54630692,2091.1,2090.1,2.80955228]
[1770514561792,0.54630692,2091.1,2090.0,7.55072906]
[1770514561993,0.54630692,2091.1,2090.0,11.91328931]